[Event "Titled Tuesday Blitz April 26 Early 2022"]
[White "Estrada Nieto, Julian"]
[Black "Mangialardo, Tiago Carvalho"]
[WhiteFideId "5101018"]
[BlackFideId "2130718"]
[WhiteElo "2252"]
[BlackElo "2088"]
[Result "1-0"]
[Round "10"]
[TimeControl "180+1"]
[Date "2022.04.26"]
[WhiteClock "0:01:13"]
[BlackClock "0:00:02"]

1. d4 {[%clk 0:03:00]}  Nf6 {[%clk 0:02:59]} 2. Nf3 {[%clk 0:02:59]}  c5 {[%clk 0:03:00]} 3. d5 {[%clk 0:02:58]}  g6 {[%clk 0:03:00]} 4. Nc3 {[%clk 0:02:58]}  Bg7 {[%clk 0:03:01]} 5. e4 {[%clk 0:02:59]}  d6 {[%clk 0:03:01]} 6. Bb5+ {[%clk 0:02:58]}  Nbd7 {[%clk 0:02:59]} 7. a4 {[%clk 0:02:59]}  a6 {[%clk 0:02:59]} 8. Be2 {[%clk 0:02:58]}  O-O {[%clk 0:03:00]} 9. O-O {[%clk 0:02:58]}  Rb8 {[%clk 0:02:55]} 10. Nd2 {[%clk 0:02:54]}  e6 {[%clk 0:02:50]} 11. Nc4 {[%clk 0:02:52]}  exd5 {[%clk 0:02:44]} 12. exd5 {[%clk 0:02:46]}  b5 {[%clk 0:01:58]} 13. axb5 {[%clk 0:02:45]}  axb5 {[%clk 0:01:59]} 14. Na5 {[%clk 0:02:45]}  b4 {[%clk 0:01:50]} 15. Nc6 {[%clk 0:02:33]}  Qb6 {[%clk 0:01:22]} 16. Nxb8 {[%clk 0:02:29]}  bxc3 {[%clk 0:01:21]} 17. Nxd7 {[%clk 0:02:29]}  Bxd7 {[%clk 0:01:19]} 18. bxc3 {[%clk 0:02:27]}  Ne4 {[%clk 0:01:18]} 19. Bd2 {[%clk 0:02:17]}  Nxc3 {[%clk 0:01:16]} 20. Bxc3 {[%clk 0:02:15]}  Bxc3 {[%clk 0:01:15]} 21. Rb1 {[%clk 0:02:15]}  Qd8 {[%clk 0:01:06]} 22. Bb5 {[%clk 0:02:12]}  Bf5 {[%clk 0:01:02]} 23. Bd3 {[%clk 0:02:06]}  Bd7 {[%clk 0:01:01]} 24. Rb3 {[%clk 0:02:02]}  Be5 {[%clk 0:00:57]} 25. Re1 {[%clk 0:02:00]}  Qc8 {[%clk 0:00:25]} 26. Bb5 {[%clk 0:01:55]}  Bg4 {[%clk 0:00:24]} 27. Qd2 {[%clk 0:01:49]}  c4 {[%clk 0:00:06]} 28. Ra3 {[%clk 0:01:47]}  Qc5 {[%clk 0:00:03]} 29. Ra5 {[%clk 0:01:32]}  c3 {[%clk 0:00:04]} 30. Qg5 {[%clk 0:01:28]}  Qb4 {[%clk 0:00:02]} 31. Ra4 {[%clk 0:01:20]}  Qxb5 {[%clk 0:00:02]} 32. Rxg4 {[%clk 0:01:13]} 1-0


[Site "https://www.chess.com"]

[Event "Titled Tuesday Blitz April 26 Early 2022"]
[White "Eynullayev, Atilla"]
[Black "Koziorowicz, Michal"]
[WhiteFideId "13413570"]
[BlackFideId "21809194"]
[WhiteElo "1936"]
[BlackElo "2235"]
[Result "1-0"]
[Round "10"]
[TimeControl "180+1"]
[Date "2022.04.26"]
[WhiteClock "0:00:09"]
[BlackClock "0:00:17"]

1. e4 {[%clk 0:03:00]}  f6 {[%clk 0:03:00]} 2. d4 {[%clk 0:02:56]}  Kf7 {[%clk 0:03:01]} 3. Nc3 {[%clk 0:02:55]}  g6 {[%clk 0:03:02]} 4. h3 {[%clk 0:02:55]}  Kg7 {[%clk 0:03:03]} 5. Nf3 {[%clk 0:02:55]}  d6 {[%clk 0:03:02]} 6. Bd3 {[%clk 0:02:55]}  e5 {[%clk 0:03:02]} 7. Be3 {[%clk 0:02:53]}  Nc6 {[%clk 0:03:01]} 8. d5 {[%clk 0:02:51]}  Nce7 {[%clk 0:03:01]} 9. g4 {[%clk 0:02:51]}  h6 {[%clk 0:03:01]} 10. Nd2 {[%clk 0:02:50]}  c5 {[%clk 0:02:59]} 11. a4 {[%clk 0:02:48]}  Bd7 {[%clk 0:02:57]} 12. h4 {[%clk 0:02:48]}  Qc8 {[%clk 0:02:47]} 13. Rg1 {[%clk 0:02:47]}  Kf7 {[%clk 0:02:47]} 14. h5 {[%clk 0:02:47]}  g5 {[%clk 0:02:47]} 15. f3 {[%clk 0:02:40]}  Qb8 {[%clk 0:02:43]} 16. Ne2 {[%clk 0:02:39]}  Nc8 {[%clk 0:02:43]} 17. c3 {[%clk 0:02:37]}  Be7 {[%clk 0:02:42]} 18. b4 {[%clk 0:02:36]}  b6 {[%clk 0:02:37]} 19. Ng3 {[%clk 0:02:35]}  Bd8 {[%clk 0:02:36]} 20. Qe2 {[%clk 0:02:21]}  Nge7 {[%clk 0:02:34]} 21. Nc4 {[%clk 0:02:03]}  a6 {[%clk 0:02:17]} 22. bxc5 {[%clk 0:01:56]}  bxc5 {[%clk 0:02:17]} 23. Rb1 {[%clk 0:01:56]}  Qa7 {[%clk 0:02:15]} 24. Nf5 {[%clk 0:01:41]}  Nxf5 {[%clk 0:02:13]} 25. gxf5 {[%clk 0:01:42]}  Bxa4 {[%clk 0:02:08]} 26. f4 {[%clk 0:01:42]}  exf4 {[%clk 0:02:05]} 27. Bxf4 {[%clk 0:01:42]}  gxf4 {[%clk 0:01:25]} 28. Qg4 {[%clk 0:01:40]}  Ke8 {[%clk 0:01:25]} 29. e5 {[%clk 0:01:15]}  dxe5 {[%clk 0:01:24]} 30. d6 {[%clk 0:01:05]}  Qf7 {[%clk 0:01:20]} 31. Qf3 {[%clk 0:00:21]}  Ra7 {[%clk 0:01:20]} 32. Be4 {[%clk 0:00:08]}  Qxc4 {[%clk 0:01:17]} 33. Bc6+ {[%clk 0:00:08]}  Kf8 {[%clk 0:01:05]} 34. Bxa4 {[%clk 0:00:07]}  Qxa4 {[%clk 0:01:04]} 35. Rb7 {[%clk 0:00:07]}  Qa1+ {[%clk 0:00:38]} 36. Kf2 {[%clk 0:00:01]}  Qa2+ {[%clk 0:00:38]} 37. Ke1 {[%clk 0:00:01]}  Nxd6 {[%clk 0:00:17]} 38. Rxa7 {[%clk 0:00:01]}  e4 {[%clk 0:00:17]} 39. Qd1 {[%clk 0:00:01]}  Be7 {[%clk 0:00:15]} 40. Ra8+ {[%clk 0:00:01]}  Kf7 {[%clk 0:00:15]} 41. Rxh8 {[%clk 0:00:01]}  e3 {[%clk 0:00:14]} 42. Rh7+ {[%clk 0:00:02]}  Ke8 {[%clk 0:00:14]} 43. Qe2 {[%clk 0:00:03]}  Qb1+ {[%clk 0:00:14]} 44. Qd1 {[%clk 0:00:04]}  Qxd1+ {[%clk 0:00:14]} 45. Kxd1 {[%clk 0:00:04]}  f3 {[%clk 0:00:14]} 46. Rg3 {[%clk 0:00:04]}  f2 {[%clk 0:00:13]} 47. Ke2 {[%clk 0:00:04]}  Nxf5 {[%clk 0:00:13]} 48. Rf3 {[%clk 0:00:04]}  Nh4 {[%clk 0:00:12]} 49. Rxe3 {[%clk 0:00:04]}  Nf5 {[%clk 0:00:12]} 50. Rf3 {[%clk 0:00:04]}  Nd6 {[%clk 0:00:13]} 51. Rxf2 {[%clk 0:00:04]}  Ne4 {[%clk 0:00:13]} 52. Rf3 {[%clk 0:00:04]}  Kd7 {[%clk 0:00:14]} 53. Re3 {[%clk 0:00:03]}  f5 {[%clk 0:00:14]} 54. Rxh6 {[%clk 0:00:03]}  Bg5 {[%clk 0:00:15]} 55. Rh7+ {[%clk 0:00:04]}  Ke6 {[%clk 0:00:15]} 56. Rd3 {[%clk 0:00:04]}  c4 {[%clk 0:00:14]} 57. Rd4 {[%clk 0:00:04]}  Nxc3+ {[%clk 0:00:14]} 58. Kf3 {[%clk 0:00:05]}  Nb5 {[%clk 0:00:13]} 59. Rxc4 {[%clk 0:00:05]}  Kd5 {[%clk 0:00:14]} 60. Rc8 {[%clk 0:00:05]}  Nd4+ {[%clk 0:00:14]} 61. Kg3 {[%clk 0:00:05]}  Bf4+ {[%clk 0:00:14]} 62. Kxf4 {[%clk 0:00:05]}  Ne6+ {[%clk 0:00:15]} 63. Kxf5 {[%clk 0:00:06]}  Nd4+ {[%clk 0:00:15]} 64. Kg6 {[%clk 0:00:06]}  Nf3 {[%clk 0:00:16]} 65. Rd8+ {[%clk 0:00:06]}  Ke5 {[%clk 0:00:17]} 66. Re7+ {[%clk 0:00:07]}  Kf4 {[%clk 0:00:17]} 67. Rf8+ {[%clk 0:00:08]}  Kg4 {[%clk 0:00:17]} 68. Rxf3 {[%clk 0:00:08]}  Kxf3 {[%clk 0:00:17]} 69. Ra7 {[%clk 0:00:09]} 1-0


[Site "https://www.chess.com"]

[Event "Titled Tuesday Blitz April 26 Early 2022"]
[White "Fernandez Siles, Luis"]
[Black "Przybylski, Wojciech"]
[WhiteFideId "2209420"]
[BlackFideId "1117599"]
[WhiteElo "2212"]
[BlackElo "2133"]
[Result "0-1"]
[Round "10"]
[TimeControl "180+1"]
[Date "2022.04.26"]
[WhiteClock "0:00:23"]
[BlackClock "0:00:07"]

1. d4 {[%clk 0:03:00]}  Nf6 {[%clk 0:02:55]} 2. c4 {[%clk 0:03:00]}  e6 {[%clk 0:02:50]} 3. Nc3 {[%clk 0:03:00]}  Bb4 {[%clk 0:02:49]} 4. e3 {[%clk 0:03:00]}  O-O {[%clk 0:02:48]} 5. Ne2 {[%clk 0:03:01]}  d5 {[%clk 0:02:47]} 6. a3 {[%clk 0:02:58]}  Bd6 {[%clk 0:02:46]} 7. c5 {[%clk 0:02:54]}  Be7 {[%clk 0:02:45]} 8. b4 {[%clk 0:02:51]}  c6 {[%clk 0:02:43]} 9. Ng3 {[%clk 0:02:43]}  Ne8 {[%clk 0:02:04]} 10. Bd3 {[%clk 0:02:36]}  f5 {[%clk 0:02:03]} 11. f4 {[%clk 0:02:05]}  Nd7 {[%clk 0:01:59]} 12. Bd2 {[%clk 0:02:01]}  Ndf6 {[%clk 0:01:59]} 13. Nh5 {[%clk 0:01:52]}  Nxh5 {[%clk 0:01:58]} 14. Qxh5 {[%clk 0:01:53]}  Nf6 {[%clk 0:01:57]} 15. Qf3 {[%clk 0:01:53]}  Bd7 {[%clk 0:01:56]} 16. h3 {[%clk 0:01:52]}  Ne4 {[%clk 0:01:54]} 17. g4 {[%clk 0:01:49]}  Bh4+ {[%clk 0:01:52]} 18. Kd1 {[%clk 0:01:40]}  Nf2+ {[%clk 0:01:42]} 19. Kc2 {[%clk 0:01:40]}  e5 {[%clk 0:01:21]} 20. dxe5 {[%clk 0:01:33]}  fxg4 {[%clk 0:01:15]} 21. hxg4 {[%clk 0:01:28]}  Bxg4 {[%clk 0:01:11]} 22. Bxh7+ {[%clk 0:01:26]}  Kf7 {[%clk 0:00:46]} 23. Qg2 {[%clk 0:01:12]}  Rh8 {[%clk 0:00:45]} 24. e6+ {[%clk 0:00:39]}  Kxe6 {[%clk 0:00:40]} 25. f5+ {[%clk 0:00:38]}  Kd7 {[%clk 0:00:38]} 26. Bg6 {[%clk 0:00:37]}  Qf6 {[%clk 0:00:28]} 27. Kb2 {[%clk 0:00:31]}  Nd3+ {[%clk 0:00:26]} 28. Ka2 {[%clk 0:00:31]}  a5 {[%clk 0:00:16]} 29. Qxg4 {[%clk 0:00:30]}  axb4 {[%clk 0:00:16]} 30. Kb3 {[%clk 0:00:24]}  bxc3 {[%clk 0:00:10]} 31. Bxc3 {[%clk 0:00:24]}  Nxc5+ {[%clk 0:00:10]} 32. Kb4 {[%clk 0:00:24]}  Qe7 {[%clk 0:00:10]} 33. f6+ {[%clk 0:00:23]}  Kc7 {[%clk 0:00:07]} 34. fxe7 {[%clk 0:00:23]}  Ra4+ {[%clk 0:00:07]} 35. Kxc5 {[%clk 0:00:23]}  b6# {[%clk 0:00:07]} 0-1


[Site "https://www.chess.com"]

[Event "Titled Tuesday Blitz April 26 Early 2022"]
[White "Fiorito, Fabian"]
[Black "Bristy, Mukherjee"]
[WhiteFideId "100200"]
[BlackFideId "25077325"]
[WhiteElo "2395"]
[BlackElo "1661"]
[Result "1-0"]
[Round "10"]
[TimeControl "180+1"]
[Date "2022.04.26"]
[WhiteClock "0:00:50"]
[BlackClock "0:00:01"]

1. d4 {[%clk 0:03:00]}  f5 {[%clk 0:02:57]} 2. Nc3 {[%clk 0:03:00]}  Nf6 {[%clk 0:02:57]} 3. Bf4 {[%clk 0:03:01]}  e6 {[%clk 0:02:57]} 4. e3 {[%clk 0:03:01]}  Be7 {[%clk 0:02:56]} 5. Qd2 {[%clk 0:03:01]}  d6 {[%clk 0:02:55]} 6. O-O-O {[%clk 0:03:00]}  O-O {[%clk 0:02:52]} 7. h3 {[%clk 0:03:00]}  Nc6 {[%clk 0:02:49]} 8. Bd3 {[%clk 0:02:58]}  Qe8 {[%clk 0:02:48]} 9. g4 {[%clk 0:02:57]}  e5 {[%clk 0:02:45]} 10. Bg5 {[%clk 0:02:40]}  h6 {[%clk 0:02:31]} 11. Bxf6 {[%clk 0:02:38]}  Bxf6 {[%clk 0:02:12]} 12. Nge2 {[%clk 0:02:27]}  exd4 {[%clk 0:02:03]} 13. exd4 {[%clk 0:02:27]}  fxg4 {[%clk 0:01:58]} 14. hxg4 {[%clk 0:02:27]}  Bxg4 {[%clk 0:01:58]} 15. Rdg1 {[%clk 0:02:15]}  Bxe2 {[%clk 0:01:57]} 16. Nxe2 {[%clk 0:02:14]}  Qe6 {[%clk 0:01:08]} 17. d5 {[%clk 0:01:31]}  Qe5 {[%clk 0:00:58]} 18. dxc6 {[%clk 0:01:31]}  Qxb2+ {[%clk 0:00:58]} 19. Kd1 {[%clk 0:01:32]}  Bg5 {[%clk 0:00:44]} 20. Rxg5 {[%clk 0:01:30]}  hxg5 {[%clk 0:00:43]} 21. Bc4+ {[%clk 0:01:30]}  Rf7 {[%clk 0:00:40]} 22. Bxf7+ {[%clk 0:01:16]}  Kxf7 {[%clk 0:00:41]} 23. Qd5+ {[%clk 0:01:16]}  Ke7 {[%clk 0:00:38]} 24. Qxg5+ {[%clk 0:01:16]}  Kf7 {[%clk 0:00:37]} 25. Qf5+ {[%clk 0:01:15]}  Ke7 {[%clk 0:00:30]} 26. Nf4 {[%clk 0:01:06]}  Qa1+ {[%clk 0:00:05]} 27. Ke2 {[%clk 0:01:06]}  Qe5+ {[%clk 0:00:03]} 28. Qxe5+ {[%clk 0:01:05]}  dxe5 {[%clk 0:00:04]} 29. cxb7 {[%clk 0:01:02]}  Rb8 {[%clk 0:00:04]} 30. Nd5+ {[%clk 0:00:57]}  Kd6 {[%clk 0:00:04]} 31. Rd1 {[%clk 0:00:56]}  Rxb7 {[%clk 0:00:04]} 32. Nc3+ {[%clk 0:00:53]}  Ke6 {[%clk 0:00:03]} 33. Rb1 {[%clk 0:00:52]}  Rxb1 {[%clk 0:00:02]} 34. Nxb1 {[%clk 0:00:53]}  Kd5 {[%clk 0:00:02]} 35. Kd3 {[%clk 0:00:53]}  e4+ {[%clk 0:00:02]} 36. Ke3 {[%clk 0:00:54]}  Ke5 {[%clk 0:00:02]} 37. Nc3 {[%clk 0:00:54]}  g6 {[%clk 0:00:02]} 38. Nxe4 {[%clk 0:00:55]}  Kd5 {[%clk 0:00:03]} 39. Kd3 {[%clk 0:00:54]}  Ke5 {[%clk 0:00:03]} 40. c4 {[%clk 0:00:55]}  Kf4 {[%clk 0:00:03]} 41. Nc5 {[%clk 0:00:53]}  Ke5 {[%clk 0:00:03]} 42. Na6 {[%clk 0:00:51]}  c6 {[%clk 0:00:03]} 43. Nb8 {[%clk 0:00:51]}  Kd6 {[%clk 0:00:03]} 44. Kd4 {[%clk 0:00:50]}  Kc7 {[%clk 0:00:04]} 45. Na6+ {[%clk 0:00:50]}  Kb6 {[%clk 0:00:05]} 46. Nb4 {[%clk 0:00:47]}  c5+ {[%clk 0:00:04]} 47. Kc3 {[%clk 0:00:48]}  cxb4+ {[%clk 0:00:05]} 48. Kxb4 {[%clk 0:00:48]}  Kc6 {[%clk 0:00:05]} 49. c5 {[%clk 0:00:49]}  a6 {[%clk 0:00:03]} 50. Kc4 {[%clk 0:00:49]}  Kc7 {[%clk 0:00:03]} 51. Kd5 {[%clk 0:00:49]}  Kd7 {[%clk 0:00:03]} 52. c6+ {[%clk 0:00:49]}  Kc7 {[%clk 0:00:04]} 53. Kc5 {[%clk 0:00:50]}  g5 {[%clk 0:00:03]} 54. f3 {[%clk 0:00:51]}  a5 {[%clk 0:00:01]} 55. a4 {[%clk 0:00:50]} 1-0


[Site "https://www.chess.com"]

[Event "Titled Tuesday Blitz April 26 Early 2022"]
[White "Grandelius, Nils"]
[Black "Maksimovic, Bojan"]
[WhiteFideId "1710400"]
[BlackFideId "14408120"]
[WhiteElo "2617"]
[BlackElo "2448"]
[Result "0-1"]
[Round "10"]
[TimeControl "180+1"]
[Date "2022.04.26"]
[WhiteClock "0:02:29"]
[BlackClock "0:02:17"]

1. Nf3 {[%clk 0:03:00]}  Nf6 {[%clk 0:02:59]} 2. g3 {[%clk 0:03:01]}  g6 {[%clk 0:03:00]} 3. b3 {[%clk 0:03:00]}  Bg7 {[%clk 0:03:00]} 4. Bb2 {[%clk 0:03:01]}  d6 {[%clk 0:03:00]} 5. Bg2 {[%clk 0:03:01]}  e5 {[%clk 0:03:00]} 6. O-O {[%clk 0:03:00]}  O-O {[%clk 0:03:00]} 7. c4 {[%clk 0:03:01]}  Nc6 {[%clk 0:02:59]} 8. Nc3 {[%clk 0:03:01]}  Bf5 {[%clk 0:02:54]} 9. d4 {[%clk 0:02:53]}  exd4 {[%clk 0:02:46]} 10. Nxd4 {[%clk 0:02:54]}  Nxd4 {[%clk 0:02:46]} 11. Qxd4 {[%clk 0:02:55]}  Ne4 {[%clk 0:02:40]} 12. Qe3 {[%clk 0:02:52]}  Re8 {[%clk 0:02:36]} 13. Qc1 {[%clk 0:02:42]}  Nxc3 {[%clk 0:02:22]} 14. Bxc3 {[%clk 0:02:42]}  Rxe2 {[%clk 0:02:21]} 15. Bxb7 {[%clk 0:02:41]}  Rb8 {[%clk 0:02:20]} 16. Bf3 {[%clk 0:02:29]}  Rc2 {[%clk 0:02:17]} 0-1


[Site "https://www.chess.com"]

[Event "Titled Tuesday Blitz April 26 Early 2022"]
[White "Haukenfrers, Dale"]
[Black "Matveeva, Olga"]
[WhiteFideId "2603780"]
[BlackFideId "24107018"]
[WhiteElo "2063"]
[BlackElo "2083"]
[Result "0-1"]
[Round "10"]
[TimeControl "180+1"]
[Date "2022.04.26"]
[WhiteClock "0:00:51"]
[BlackClock "0:00:54"]

1. f3 {[%clk 0:03:00]}  d5 {[%clk 0:02:58]} 2. c3 {[%clk 0:03:01]}  Nf6 {[%clk 0:02:58]} 3. e4 {[%clk 0:03:01]}  dxe4 {[%clk 0:02:57]} 4. fxe4 {[%clk 0:03:02]}  e5 {[%clk 0:02:56]} 5. Be2 {[%clk 0:03:02]}  Nc6 {[%clk 0:02:55]} 6. d3 {[%clk 0:03:00]}  Bc5 {[%clk 0:02:52]} 7. Nf3 {[%clk 0:03:00]}  O-O {[%clk 0:02:50]} 8. b4 {[%clk 0:02:59]}  Bb6 {[%clk 0:02:49]} 9. a4 {[%clk 0:02:58]}  a5 {[%clk 0:02:48]} 10. bxa5 {[%clk 0:02:56]}  Rxa5 {[%clk 0:02:46]} 11. Na3 {[%clk 0:02:54]}  Ng4 {[%clk 0:02:39]} 12. Nc4 {[%clk 0:02:53]}  Nf2 {[%clk 0:02:31]} 13. Qb3 {[%clk 0:02:52]}  Nxh1 {[%clk 0:02:27]} 14. Nxa5 {[%clk 0:02:50]}  Nxa5 {[%clk 0:02:25]} 15. Qb5 {[%clk 0:02:48]}  Nf2 {[%clk 0:02:22]} 16. Nxe5 {[%clk 0:02:43]}  Nxe4 {[%clk 0:02:05]} 17. dxe4 {[%clk 0:02:42]}  Qh4+ {[%clk 0:02:05]} 18. Kd1 {[%clk 0:02:34]}  Rd8+ {[%clk 0:02:04]} 19. Kc2 {[%clk 0:02:31]}  Qxe4+ {[%clk 0:02:04]} 20. Bd3 {[%clk 0:02:31]}  Qxg2+ {[%clk 0:02:01]} 21. Kb1 {[%clk 0:02:21]}  Be6 {[%clk 0:01:53]} 22. c4 {[%clk 0:02:03]}  Nc6 {[%clk 0:01:37]} 23. Nxc6 {[%clk 0:01:53]}  bxc6 {[%clk 0:01:38]} 24. Qa6 {[%clk 0:01:43]}  Qxh2 {[%clk 0:01:28]} 25. Ra2 {[%clk 0:01:37]}  Qg3 {[%clk 0:01:22]} 26. Rd2 {[%clk 0:01:35]}  Be3 {[%clk 0:01:18]} 27. Bxh7+ {[%clk 0:01:30]}  Kxh7 {[%clk 0:01:18]} 28. Rxd8 {[%clk 0:01:30]}  Bf5+ {[%clk 0:01:14]} 29. Kb2 {[%clk 0:01:18]}  Qe5+ {[%clk 0:01:08]} 30. Kb3 {[%clk 0:01:13]}  Bxc1 {[%clk 0:01:05]} 31. c5 {[%clk 0:01:04]}  Qb2+ {[%clk 0:01:00]} 32. Kc4 {[%clk 0:01:03]}  Qe2+ {[%clk 0:01:00]} 33. Kc3 {[%clk 0:01:01]}  Qxa6 {[%clk 0:00:59]} 34. a5 {[%clk 0:01:02]}  Qxa5+ {[%clk 0:00:58]} 35. Kc4 {[%clk 0:01:00]}  Qa4+ {[%clk 0:00:57]} 36. Kc3 {[%clk 0:00:59]}  Qa3+ {[%clk 0:00:56]} 37. Kc4 {[%clk 0:00:59]}  Qa2+ {[%clk 0:00:56]} 38. Kc3 {[%clk 0:00:59]}  Qb2+ {[%clk 0:00:56]} 39. Kc4 {[%clk 0:00:58]}  Qc2+ {[%clk 0:00:56]} 40. Kd4 {[%clk 0:00:51]}  Qd3+ {[%clk 0:00:54]} 41. Ke5 {[%clk 0:00:51]}  Qe4# {[%clk 0:00:54]} 0-1


[Site "https://www.chess.com"]

[Event "Titled Tuesday Blitz April 26 Early 2022"]
[White "Hoffmann, Asa"]
[Black "Shtyka, Sergey"]
[WhiteFideId "2001470"]
[BlackFideId "4138465"]
[WhiteElo "2117"]
[BlackElo "2014"]
[Result "0-1"]
[Round "10"]
[TimeControl "180+1"]
[Date "2022.04.26"]
[WhiteClock "0:00:28"]
[BlackClock "0:00:33"]

1. d4 {[%clk 0:02:54]}  c5 {[%clk 0:02:59]} 2. dxc5 {[%clk 0:02:53]}  e5 {[%clk 0:02:58]} 3. Nc3 {[%clk 0:02:52]}  Bxc5 {[%clk 0:02:58]} 4. Ne4 {[%clk 0:02:52]}  Be7 {[%clk 0:02:57]} 5. Nd6+ {[%clk 0:02:52]}  Bxd6 {[%clk 0:02:57]} 6. Qxd6 {[%clk 0:02:51]}  Qe7 {[%clk 0:02:57]} 7. Qxe7+ {[%clk 0:02:44]}  Nxe7 {[%clk 0:02:58]} 8. c4 {[%clk 0:02:39]}  d5 {[%clk 0:02:58]} 9. e3 {[%clk 0:02:34]}  Be6 {[%clk 0:02:57]} 10. Nf3 {[%clk 0:02:32]}  Nbc6 {[%clk 0:02:57]} 11. Bd2 {[%clk 0:02:31]}  dxc4 {[%clk 0:02:56]} 12. Ng5 {[%clk 0:02:29]}  Bf5 {[%clk 0:02:29]} 13. Bxc4 {[%clk 0:02:27]}  O-O {[%clk 0:02:30]} 14. O-O {[%clk 0:02:21]}  h6 {[%clk 0:02:29]} 15. Nf3 {[%clk 0:02:21]}  Rfd8 {[%clk 0:02:29]} 16. Bc3 {[%clk 0:02:20]}  Ng6 {[%clk 0:02:22]} 17. Rfd1 {[%clk 0:02:13]}  Rac8 {[%clk 0:02:13]} 18. Bd5 {[%clk 0:02:09]}  a6 {[%clk 0:02:05]} 19. Bxc6 {[%clk 0:02:07]}  Rxd1+ {[%clk 0:02:03]} 20. Rxd1 {[%clk 0:02:07]}  Rxc6 {[%clk 0:02:04]} 21. Nxe5 {[%clk 0:02:00]}  Nxe5 {[%clk 0:02:03]} 22. Bxe5 {[%clk 0:02:00]}  f6 {[%clk 0:01:56]} 23. Bc3 {[%clk 0:02:00]}  Be6 {[%clk 0:01:55]} 24. a3 {[%clk 0:01:59]}  Kf7 {[%clk 0:01:55]} 25. f3 {[%clk 0:01:58]}  Bb3 {[%clk 0:01:54]} 26. Rd2 {[%clk 0:01:58]}  Ke6 {[%clk 0:01:54]} 27. e4 {[%clk 0:01:58]}  Rd6 {[%clk 0:01:54]} 28. Rxd6+ {[%clk 0:01:56]}  Kxd6 {[%clk 0:01:53]} 29. Kf2 {[%clk 0:01:56]}  Ke6 {[%clk 0:01:54]} 30. Ke3 {[%clk 0:01:56]}  b5 {[%clk 0:01:53]} 31. f4 {[%clk 0:01:55]}  g6 {[%clk 0:01:52]} 32. g4 {[%clk 0:01:55]}  Bd1 {[%clk 0:01:51]} 33. h3 {[%clk 0:01:55]}  Bb3 {[%clk 0:01:48]} 34. Kd4 {[%clk 0:01:54]}  Bd1 {[%clk 0:01:45]} 35. Kc5 {[%clk 0:01:49]}  Bf3 {[%clk 0:01:43]} 36. Kd4 {[%clk 0:01:48]}  g5 {[%clk 0:01:42]} 37. f5+ {[%clk 0:01:35]}  Kf7 {[%clk 0:01:34]} 38. e5 {[%clk 0:01:34]}  fxe5+ {[%clk 0:01:32]} 39. Kxe5 {[%clk 0:01:34]}  Bg2 {[%clk 0:01:32]} 40. h4 {[%clk 0:01:17]}  gxh4 {[%clk 0:01:31]} 41. Kf4 {[%clk 0:01:15]}  Bc6 {[%clk 0:01:24]} 42. Be1 {[%clk 0:01:08]}  h3 {[%clk 0:01:24]} 43. Kg3 {[%clk 0:01:08]}  Bg2 {[%clk 0:01:22]} 44. Bc3 {[%clk 0:01:04]}  Bf1 {[%clk 0:01:22]} 45. Be5 {[%clk 0:01:01]}  Bg2 {[%clk 0:01:12]} 46. Kf2 {[%clk 0:00:59]}  Kf8 {[%clk 0:01:11]} 47. Ke3 {[%clk 0:00:58]}  Ke8 {[%clk 0:01:07]} 48. Bf4 {[%clk 0:00:55]}  Kf7 {[%clk 0:01:07]} 49. Kf2 {[%clk 0:00:54]}  Kg7 {[%clk 0:01:07]} 50. Bg3 {[%clk 0:00:45]}  Be4 {[%clk 0:01:06]} 51. Bh4 {[%clk 0:00:44]}  h5 {[%clk 0:01:04]} 52. f6+ {[%clk 0:00:43]}  Kf7 {[%clk 0:00:44]} 53. Kg3 {[%clk 0:00:39]}  hxg4 {[%clk 0:00:43]} 54. Bg5 {[%clk 0:00:38]}  Bd5 {[%clk 0:00:41]} 55. Bf4 {[%clk 0:00:36]}  Be6 {[%clk 0:00:39]} 56. Bg5 {[%clk 0:00:35]}  Kg6 {[%clk 0:00:39]} 57. Bf4 {[%clk 0:00:34]}  Kf5 {[%clk 0:00:39]} 58. Be3 {[%clk 0:00:31]}  Ke4 {[%clk 0:00:38]} 59. Bg1 {[%clk 0:00:30]}  Kd3 {[%clk 0:00:38]} 60. Bh2 {[%clk 0:00:29]}  Kc2 {[%clk 0:00:36]} 61. Kf4 {[%clk 0:00:29]}  Kxb2 {[%clk 0:00:34]} 62. Ke5 {[%clk 0:00:29]}  Bf7 {[%clk 0:00:33]} 63. Kd6 {[%clk 0:00:29]}  Kxa3 {[%clk 0:00:33]} 64. Ke7 {[%clk 0:00:29]}  Bg6 {[%clk 0:00:33]} 65. f7 {[%clk 0:00:29]}  Bxf7 {[%clk 0:00:33]} 66. Kxf7 {[%clk 0:00:28]}  b4 {[%clk 0:00:33]} 0-1


[Site "https://www.chess.com"]

[Event "Titled Tuesday Blitz April 26 Early 2022"]
[White "Ianov, Viktor"]
[Black "Li, Ben"]
[WhiteFideId "14102730"]
[BlackFideId "2089980"]
[WhiteElo "2161"]
[BlackElo "2267"]
[Result "0-1"]
[Round "10"]
[TimeControl "180+1"]
[Date "2022.04.26"]
[WhiteClock "0:01:12"]
[BlackClock "0:00:30"]

1. Nf3 {[%clk 0:03:00]}  d5 {[%clk 0:02:58]} 2. g3 {[%clk 0:03:00]}  c5 {[%clk 0:02:57]} 3. Bg2 {[%clk 0:03:00]}  Nc6 {[%clk 0:02:58]} 4. d4 {[%clk 0:03:00]}  Nf6 {[%clk 0:02:58]} 5. O-O {[%clk 0:02:59]}  e6 {[%clk 0:02:58]} 6. c4 {[%clk 0:02:58]}  dxc4 {[%clk 0:02:59]} 7. Ne5 {[%clk 0:02:52]}  Bd7 {[%clk 0:02:56]} 8. Na3 {[%clk 0:02:51]}  cxd4 {[%clk 0:02:54]} 9. Naxc4 {[%clk 0:02:51]}  Rc8 {[%clk 0:02:52]} 10. Bf4 {[%clk 0:02:51]}  Nd5 {[%clk 0:02:44]} 11. Qb3 {[%clk 0:02:50]}  Be7 {[%clk 0:02:05]} 12. Qxb7 {[%clk 0:02:49]}  Nxe5 {[%clk 0:02:02]} 13. Nxe5 {[%clk 0:02:49]}  Rc7 {[%clk 0:02:01]} 14. Qb3 {[%clk 0:02:47]}  Nxf4 {[%clk 0:01:53]} 15. gxf4 {[%clk 0:02:46]}  O-O {[%clk 0:01:53]} 16. Rfd1 {[%clk 0:02:44]}  Bc5 {[%clk 0:01:49]} 17. Rac1 {[%clk 0:02:40]}  Bb6 {[%clk 0:01:42]} 18. Nc4 {[%clk 0:02:31]}  Qb8 {[%clk 0:01:23]} 19. Nxb6 {[%clk 0:02:29]}  Rxc1 {[%clk 0:01:23]} 20. Rxc1 {[%clk 0:02:27]}  axb6 {[%clk 0:01:24]} 21. Qg3 {[%clk 0:02:22]}  Bb5 {[%clk 0:01:15]} 22. Bf3 {[%clk 0:02:15]}  h6 {[%clk 0:01:12]} 23. b3 {[%clk 0:02:09]}  Rd8 {[%clk 0:01:10]} 24. a4 {[%clk 0:02:09]}  Ba6 {[%clk 0:01:10]} 25. Rc6 {[%clk 0:02:05]}  d3 {[%clk 0:01:08]} 26. exd3 {[%clk 0:02:02]}  Rxd3 {[%clk 0:01:09]} 27. Qg4 {[%clk 0:01:47]}  Rd4 {[%clk 0:01:02]} 28. Kg2 {[%clk 0:01:34]}  Rxf4 {[%clk 0:01:01]} 29. Qh5 {[%clk 0:01:29]}  Rf5 {[%clk 0:00:35]} 30. Qh4 {[%clk 0:01:20]}  Rxf3 {[%clk 0:00:32]} 31. Kxf3 {[%clk 0:01:18]}  Bb7 {[%clk 0:00:32]} 32. Qc4 {[%clk 0:01:12]}  Qd6 {[%clk 0:00:30]} 0-1


[Site "https://www.chess.com"]